bitfinex-derivatives/quotes_ETHF0:USTF0_20250104
["timestamp","ask_amount","ask_price","bid_price","bid_amount"]
[1735954122579,1.2903,3594.9,3594.8,1.00614675]
[1735954123691,1.56856,3594.9,3594.8,1.00614675]
[1735954126090,1.14166,3594.9,3594.8,1.00614675]
[1735954126499,0.27828,3594.7,3594.6,1.28443675]
[1735954126689,0.27828,3594.8,3594.6,1.28443675]
[1735954127187,0.27828,3594.7,3594.6,1.00614675]
[1735954127387,0.27828,3594.8,3594.6,1.28443675]
[1735954127989,6.46034484,3595.0,3594.6,1.00614675]
[1735954128192,3.25254484,3594.9,3594.8,1.00614675]
[1735954128389,3.25254484,3594.9,3594.8,1.72011675]
[1735954129596,4.923,3595.4,3594.8,1.44184675]
[1735954129793,3.53076484,3595.5,3595.3,0.27823]
[1735954130097,3.53076484,3595.5,3595.4,0.4284]
[1735954132199,3.94820293,3595.5,3595.4,0.4284]
[1735954135895,0.69565809,3595.5,3595.4,0.4284]
[1735954137210,0.27822,3595.5,3595.4,0.4284]
[1735954139004,5.03457589,3595.5,3595.4,0.4284]
[1735954139899,6.04072264,3595.5,3595.4,0.4284]
[1735954140303,11.47661355,3595.5,3595.4,0.4284]
[1735954140607,0.27824,3595.3,3595.1,0.27824]
[1735954140807,0.27824,3595.3,3595.2,0.4321]
[1735954141011,0.27828,3594.7,3594.6,1.094]
[1735954141205,1.00614675,3595.0,3594.6,1.5261]
[1735954141401,1.00614675,3595.2,3594.6,1.5261]
[1735954141602,4.62016576,3594.9,3594.7,0.27828]
[1735954141903,4.62016576,3594.9,3594.7,1.28442675]
[1735954143012,0.41748758,3594.8,3594.7,1.28442675]
[1735954144615,4.75938334,3594.8,3594.7,1.28442675]
[1735954146610,3.25812095,3594.8,3594.7,1.28442675]
[1735954147907,4.34189576,3594.9,3594.8,0.27827]
[1735954149405,0.41748758,3595.0,3594.7,1.00614675]
[1735954149406,4.75938334,3595.0,3594.7,1.00614675]
[1735954149712,4.75938334,3595.0,3594.9,0.27826]
[1735954150013,5.03764334,3595.0,3594.9,1.094]
[1735954150210,5.76553009,3595.0,3594.5,0.4425]
[1735954150513,0.27829,3594.6,3594.4,3.4861]
[1735954151011,1.28442675,3594.7,3594.5,0.27829]
[1735954151208,0.27829,3594.6,3594.4,3.4861]
[1735954151408,0.8753,3594.5,3594.4,3.4861]
[1735954152012,5.63619914,3594.5,3594.4,3.4861]
[1735954153718,5.63513919,3594.5,3594.4,3.4861]
[1735954154815,5.21765161,3594.5,3594.4,3.4861]
[1735954155118,5.21765161,3594.5,3594.4,0.2783]
[1735954155620,4.34235161,3594.5,3594.4,0.2783]
[1735954156024,4.75983919,3594.5,3594.4,0.2783]
[1735954157220,4.75983919,3594.6,3594.3,2.53774675]
[1735954157416,4.75983919,3594.6,3594.5,1.28444675]
[1735954158424,3.6335,3595.0,3594.6,0.27829]
[1735954158425,0.41748758,3594.7,3594.6,0.27829]
[1735954159923,4.34235161,3594.8,3594.6,0.4515]
[1735954160225,4.34235161,3594.8,3594.7,1.72082675]
[1735954161424,4.75983919,3594.8,3594.7,1.72082675]
[1735954162521,4.75983919,3594.9,3594.7,1.44254675]
[1735954162723,4.75983919,3594.9,3594.8,0.27827]
[1735954162922,4.75983919,3594.9,3594.8,0.69307]
[1735954166318,4.75983919,3594.9,3594.8,0.4148]
[1735954167622,4.75983919,3594.9,3594.8,3.6226]
[1735954169826,3.25721764,3594.9,3594.8,3.6226]
[1735954170936,3.67931764,3594.9,3594.8,0.4148]
[1735954171448,0.4221,3594.9,3594.8,0.4148]
[1735954171830,0.4221,3594.9,3594.8,1.5088]
[1735954175847,0.4343,3595.3,3594.8,1.5088]
[1735954176043,0.4287,3595.2,3594.9,1.00614675]
[1735954178747,0.4287,3595.2,3594.8,1.5088]
[1735954179248,1.43484675,3595.2,3594.8,1.5088]
[1735954182147,0.4287,3595.2,3594.8,1.5088]
[1735954188446,0.4287,3595.2,3594.9,1.00614675]
[1735954189342,4.34446513,3595.0,3594.9,1.00614675]
[1735954190853,4.76191268,3595.0,3594.9,1.00614675]
[1735954191753,4.34446513,3595.0,3594.9,1.00614675]
[1735954192442,4.34446513,3595.0,3594.8,1.5088]
[1735954193350,0.41744755,3595.0,3594.8,1.5088]
[1735954195258,0.41744755,3595.0,3594.8,1.7872]
[1735954195556,0.41744755,3595.0,3594.8,0.4148]
[1735954195855,0.41744755,3595.0,3594.9,1.093]
[1735954196051,4.34422353,3595.0,3594.9,1.093]
[1735954196849,4.34422353,3595.0,3594.7,3.2078]
[1735954197054,1.00614675,3594.8,3594.7,3.2078]
[1735954197449,1.86584675,3594.8,3594.7,3.2078]
[1735954198156,6.29028142,3594.8,3594.7,3.2078]
[1735954199458,11.05251484,3594.8,3594.7,3.2078]
[1735954202064,12.05866159,3594.8,3594.7,3.2078]
[1735954202559,6.62808017,3594.8,3594.7,3.2078]
[1735954203559,12.05866159,3594.8,3594.7,3.2078]
[1735954204354,11.05251484,3594.8,3594.7,3.2078]
[1735954205063,10.19281484,3594.8,3594.7,3.2078]
[1735954205563,10.19281484,3594.8,3594.7,4.0581]
[1735954206456,10.19281484,3594.8,3594.7,4.5015]
[1735954206860,0.41744755,3594.8,3594.7,4.5015]
[1735954208265,4.76265908,3594.8,3594.7,4.5015]
[1735954209952,4.76265908,3594.8,3594.7,4.0581]
[1735954211360,5.76880583,3594.8,3594.7,3.2078]
[1735954211858,1.4235943,3594.8,3594.7,3.2078]
[1735954212264,1.8682943,3594.8,3594.7,3.2078]
[1735954212865,0.86214755,3594.8,3594.7,3.2078]
[1735954213462,6.29272897,3594.8,3594.7,3.2078]
[1735954214865,10.63751484,3594.8,3594.7,3.2078]
[1735954216469,10.63751484,3594.8,3594.3,3.2078]
[1735954217267,5.43058142,3594.5,3594.3,3.2078]
[1735954217569,0.8273,3594.4,3594.3,3.2078]
[1735954217769,1.2724,3594.4,3594.3,3.2078]
[1735954218369,11.46521484,3594.4,3594.3,3.2078]
[1735954218563,13.60409026,3594.4,3594.3,3.2078]
[1735954218769,13.60409026,3594.4,3593.8,3.2078]
[1735954220374,5.43058142,3593.9,3593.8,3.2078]
[1735954221866,4.75329139,3593.9,3593.8,3.2078]
[1735954223475,0.41744755,3593.9,3593.8,3.2078]
[1735954224268,0.41744755,3593.9,3593.4,3.2078]
[1735954224473,0.8661,3593.8,3593.4,3.2078]
[1735954226177,3.24819589,3593.6,3593.4,3.2078]
[1735954226676,0.4271,3593.5,3593.4,3.2078]
[1735954227792,3.24819589,3593.6,3593.4,3.2078]
[1735954227997,0.4271,3593.5,3593.4,3.2078]
[1735954228978,3.67529589,3593.5,3593.4,3.2078]
[1735954230476,0.4271,3593.5,3593.4,3.2078]
[1735954231074,10.3501,3593.5,3592.9,3.2078]
[1735954231372,2.13887542,3593.0,3592.5,3.2078]
[1735954231573,2.13887542,3592.7,3592.5,3.2078]
[1735954232370,2.13887542,3592.7,3592.1,3.2078]
[1735954232575,2.13887542,3592.4,3592.1,3.2078]
[1735954232978,0.4172,3592.3,3592.1,3.2078]
[1735954233185,0.4238,3592.2,3592.1,3.2078]
[1735954233380,0.8401,3592.2,3592.1,3.2078]
[1735954234468,0.4238,3592.2,3592.1,3.2078]
[1735954236381,0.4172,3592.3,3592.1,3.2078]
[1735954236783,0.4172,3592.3,3592.2,0.4505]
[1735954238382,3.625,3592.3,3592.2,0.4505]
[1735954238782,3.2078,3592.3,3592.2,0.4505]
[1735954239082,3.6504802,3592.6,3592.2,0.4505]
[1735954239083,5.75607542,3592.6,3592.2,0.4505]
[1735954239882,5.75607542,3592.6,3591.6,1.094]
[1735954240084,2.13887542,3591.8,3591.7,0.4299]
[1735954243381,0.4268,3591.9,3591.7,0.4299]
[1735954244279,0.4441,3592.0,3591.7,0.4299]
[1735954244678,2.57087542,3592.1,3591.7,0.4299]
[1735954246884,2.13887542,3592.1,3591.7,0.4299]
[1735954247189,3.2078,3592.2,3591.7,0.4299]
[1735954248383,3.2078,3592.2,3591.8,0.2785]
[1735954248685,3.2078,3592.2,3592.1,0.27848]
[1735954249385,3.2078,3592.2,3592.1,0.70698]
[1735954250391,0.27845,3592.5,3592.1,0.8384]
[1735954250587,0.27845,3592.5,3592.2,0.27847]
[1735954250889,3.2078,3592.7,3592.2,0.4375]
[1735954251083,3.48627,3592.3,3592.2,0.4375]
[1735954252987,3.2078,3592.3,3592.1,0.4285]
[1735954253286,3.89557,3592.3,3592.1,0.27848]
[1735954253593,3.48627,3592.3,3592.1,0.72188]
[1735954255292,3.2078,3592.3,3592.1,0.4434]
[1735954255487,3.2078,3592.3,3592.2,0.27847]
[1735954255687,3.2078,3592.3,3592.1,0.4434]
[1735954255688,0.27845,3592.6,3592.1,0.4434]
[1735954255889,0.27845,3592.6,3592.4,0.27845]
[1735954256397,0.27845,3592.6,3592.5,0.4219]
[1735954256992,6.04291542,3592.7,3592.5,0.70035]
[1735954257196,0.27844,3592.6,3592.5,0.4219]
[1735954258894,3.2078,3592.7,3592.6,0.27844]
[1735954259492,4.923,3592.8,3592.6,0.27844]
[1735954259692,5.20143,3592.8,3592.6,0.27844]
[1735954259895,4.923,3592.8,3592.6,0.27844]
[1735954260087,4.923,3592.8,3592.7,0.27843]
[1735954260290,5.77977542,3593.1,3592.6,0.27844]
[1735954260291,3.48621,3593.1,3592.6,0.27844]
[1735954260489,0.27841,3593.0,3592.8,0.27842]
[1735954260792,0.27841,3593.0,3592.8,0.4346]
[1735954261397,0.27841,3593.0,3592.8,0.71303]
[1735954263890,0.27842,3592.9,3592.8,0.4346]
[1735954264494,0.27844,3592.6,3592.5,0.4219]
[1735954264701,0.27844,3592.6,3592.5,1.5149]
[1735954264994,3.2078,3592.7,3591.8,3.2078]
[1735954265197,0.27854,3591.3,3591.2,4.3403102]
[1735954265497,3.48634,3591.3,3591.2,4.3403102]
[1735954266596,5.35737189,3591.3,3591.0,0.4331]
[1735954266894,0.27856,3591.1,3591.0,0.4331]
[1735954267799,0.27857,3591.0,3590.6,1.3716]
[1735954268395,2.42813189,3591.1,3590.7,0.27859]
[1735954268796,2.14957189,3591.1,3590.6,1.093]
[1735954269102,0.27858,3590.9,3590.6,1.093]
[1735954269293,0.27857,3591.0,3590.7,0.27859]
[1735954269495,2.14957189,3591.1,3590.6,1.093]
[1735954269702,2.42813189,3591.1,3590.7,0.27859]
[1735954270000,2.14957189,3591.1,3590.6,1.093]
[1735954270203,2.14957189,3591.1,3590.6,0.27859]
[1735954270406,0.27858,3590.9,3590.6,1.093]
[1735954270906,0.27858,3590.8,3590.6,1.093]
[1735954271700,0.27858,3590.9,3590.6,1.37159]
[1735954271905,0.27858,3590.9,3590.7,0.27859]
[1735954272301,0.27858,3590.9,3590.6,1.37159]
[1735954272701,0.27858,3590.9,3590.7,0.27859]
[1735954272901,0.27858,3590.9,3590.6,1.37159]
[1735954273304,2.14957189,3591.1,3590.6,1.093]
[1735954273505,0.27859,3590.8,3590.6,1.093]
[1735954273706,0.27859,3590.8,3590.6,1.3716]
[1735954274607,2.14957189,3591.1,3590.6,1.093]
[1735954274798,2.14957189,3591.1,3590.7,0.27859]
[1735954275002,0.27858,3590.9,3590.6,1.37159]
[1735954275604,0.27858,3590.9,3590.6,1.093]
[1735954275811,2.14957189,3591.1,3590.7,0.27859]
[1735954276007,0.27857,3591.0,3590.7,0.27859]
[1735954276208,0.27857,3590.9,3590.7,0.27859]
[1735954276605,2.14957189,3591.1,3590.6,1.093]
[1735954276803,2.14957189,3591.1,3590.6,4.3008]
[1735954277007,2.14957189,3591.1,3591.0,0.27857]
[1735954278312,3.2078,3591.3,3591.2,0.27855]
[1735954278613,2.14957189,3591.5,3591.4,0.27854]
[1735954279914,2.14957189,3591.5,3591.4,0.69794]
[1735954280214,4.56696731,3591.6,3591.4,0.69794]
[1735954280601,4.56696731,3591.6,3591.4,0.4194]
[1735954280602,4.28844731,3591.6,3591.4,0.4194]
[1735954280805,2.14957189,3591.6,3591.5,0.27853]
[1735954281015,2.14957189,3591.6,3591.5,0.69823]
[1735954282510,5.63588189,3591.8,3591.5,0.4197]
[1735954282705,5.63588189,3591.8,3591.6,0.27852]
[1735954282906,5.35737189,3591.8,3591.7,0.27851]
[1735954284315,5.63587189,3591.8,3591.7,0.27851]
[1735954284710,3.2078,3591.8,3591.7,0.27851]
[1735954286509,2.14957189,3591.9,3591.8,0.2785]
[1735954287511,5.35737189,3592.2,3592.1,0.27848]
[1735954287721,5.35737189,3592.2,3592.1,1.37148]
[1735954291020,5.63584189,3592.2,3592.1,1.093]
[1735954291318,6.05544189,3592.2,3592.1,1.093]
[1735954292109,5.77697189,3592.2,3592.1,1.093]
[1735954292308,5.77697189,3592.2,3592.1,1.37148]
[1735954295921,0.26357189,3592.2,3592.1,6.71815542]
[1735954296223,2.33580736,3592.4,3592.3,0.27847]
[1735954296630,2.33580736,3592.5,3592.4,0.27846]
[1735954298420,2.13887542,3592.8,3592.2,0.4176]
[1735954298620,0.4441,3592.6,3592.3,1.093]
[1735954299123,0.4441,3592.6,3592.5,0.27845]
[1735954299520,0.4441,3592.6,3592.3,1.093]
[1735954299820,1.15385,3592.6,3592.4,0.27845]
[1735954300024,0.8754,3592.6,3592.5,0.27845]
[1735954300223,1.15385,3592.6,3592.4,0.27845]
[1735954300625,1.15385,3592.6,3592.5,0.27845]
[1735954301724,1.15385,3592.6,3592.4,0.27845]
[1735954302224,3.6602,3592.7,3592.3,1.093]
[1735954302225,3.2078,3592.7,3592.3,1.093]
[1735954302527,3.48624,3592.7,3592.5,0.27845]
[1735954302731,3.2078,3592.7,3592.3,1.093]
[1735954302923,3.48623,3592.7,3592.3,1.093]
[1735954303225,3.48623,3592.7,3592.5,0.27844]
[1735954304925,0.27845,3592.6,3592.4,0.72735]
[1735954305127,3.2078,3592.7,3592.3,1.093]
[1735954305624,0.27846,3592.4,3592.2,0.27847]
[1735954305928,0.8623,3592.3,3592.2,1.37147]
[1735954306218,1.3136,3592.3,3592.1,1.37148]
[1735954306419,4.79987,3592.3,3592.1,1.37148]
[1735954306725,4.5214,3592.3,3592.2,0.27847]
[1735954311327,1.3136,3592.3,3592.2,0.27847]
[1735954311530,0.27845,3592.5,3592.4,0.27846]
[1735954311923,0.27846,3592.4,3592.3,0.27846]
[1735954312727,0.27846,3592.4,3592.2,0.27847]
[1735954314031,0.27845,3592.5,3592.3,0.27846]
[1735954314423,0.27845,3592.6,3592.5,0.27845]
[1735954315319,0.27845,3592.6,3592.1,1.093]
[1735954315631,0.27845,3592.6,3592.4,0.27845]
[1735954316224,4.0534,3592.7,3592.2,0.27847]
[1735954316427,0.8456,3592.7,3592.6,0.27844]
[1735954317629,0.27844,3592.6,3592.5,0.27845]
[1735954317830,0.27846,3592.4,3591.8,0.7103]
[1735954318028,3.2078,3592.6,3592.1,0.27848]
[1735954318029,0.27845,3592.5,3592.1,0.27848]
[1735954318229,0.27847,3592.2,3592.1,0.27848]
[1735954318934,3.2078,3592.6,3592.1,0.27848]
[1735954319134,0.27847,3592.3,3592.2,0.27847]
[1735954320732,0.41778703,3592.5,3592.1,0.27848]
[1735954320932,2.13887542,3592.4,3591.8,0.7103]
[1735954321132,0.27849,3592.1,3592.0,0.27849]
[1735954321330,2.13887542,3592.4,3591.9,0.2785]
[1735954321632,2.13887542,3592.4,3591.8,0.7103]
[1735954321633,0.27847,3592.3,3591.8,0.2784]
[1735954321828,0.27847,3592.3,3592.1,0.27848]
[1735954322030,0.27846,3592.4,3592.2,0.27847]
[1735954322229,0.27847,3592.3,3592.1,0.27848]
[1735954322426,0.27846,3592.4,3592.2,0.27847]
[1735954322833,0.27847,3592.3,3592.1,0.27848]
[1735954323430,4.29914379,3592.5,3591.8,0.2784]
[1735954323836,4.29914379,3592.5,3592.4,0.27846]
[1735954324035,4.57759379,3592.5,3592.3,0.27846]
[1735954324332,0.27846,3592.4,3592.2,0.27847]
[1735954324534,0.27846,3592.4,3591.8,0.2784]
[1735954324739,0.27846,3592.4,3592.3,0.27847]
[1735954324934,0.69622894,3592.4,3592.3,0.27847]
[1735954325134,0.41776894,3592.4,3592.3,0.27847]
[1735954326036,4.29914379,3592.4,3591.8,0.97466]
[1735954326335,4.29914379,3592.4,3592.3,0.27847]
[1735954326725,4.29914379,3592.4,3591.8,0.2784]
[1735954326930,4.57760379,3592.4,3592.2,0.27847]
[1735954327533,4.29914379,3592.3,3592.2,0.27847]
[1735954328740,4.71691273,3592.3,3592.2,0.27847]
[1735954330141,4.29914379,3592.3,3592.2,0.27847]
[1735954331541,4.29914379,3592.4,3592.3,0.27847]
[1735954333041,4.71691273,3592.5,3592.0,3.2078]
[1735954333240,4.71691273,3592.5,3592.4,0.27846]
[1735954333542,4.71691273,3592.5,3592.4,1.37146]
[1735954335131,4.29914379,3592.7,3592.6,0.27844]
[1735954337348,4.71691273,3592.8,3592.7,0.27843]
[1735954338741,0.41776894,3592.9,3592.8,0.27843]
[1735954340447,4.71691273,3593.3,3592.6,3.2078]
[1735954340652,0.2784,3593.2,3593.1,0.2784]
[1735954340947,4.71691273,3593.3,3592.5,4.3403102]
[1735954340948,0.27844,3592.7,3592.5,4.6187502]
[1735954341149,0.27844,3592.7,3592.6,0.27844]
[1735954341642,3.2078,3592.8,3592.5,4.3403102]
[1735954341839,0.27845,3592.5,3592.4,1.37145]
[1735954342149,0.27845,3592.6,3592.4,1.37145]
[1735954343145,4.71691079,3592.5,3592.4,1.37145]
[1735954343349,4.71691079,3592.5,3592.4,0.27845]
[1735954346153,4.57759379,3592.6,3592.4,0.27845]
[1735954346954,4.57758379,3592.6,3592.5,0.27845]
[1735954347547,0.27844,3592.6,3592.5,0.27845]
[1735954348657,0.69620063,3592.6,3592.5,0.27845]
[1735954348954,0.41776063,3592.6,3592.5,0.27845]
[1735954349149,0.69620063,3592.6,3592.5,0.27845]
[1735954349551,0.69620063,3592.6,3592.4,0.27845]
[1735954351251,0.69620063,3592.6,3592.3,1.093]
[1735954351556,0.69620063,3592.6,3592.5,0.27845]
[1735954352056,0.27844,3592.6,3592.5,0.27845]
[1735954352655,5.65236974,3592.7,3592.5,0.27845]
[1735954353059,5.37392974,3592.7,3592.6,0.27844]
[1735954355252,4.75484422,3592.7,3592.6,0.27844]
[1735954357759,0.41772591,3592.7,3592.6,0.27844]
[1735954362165,3.25185911,3592.9,3592.8,0.27843]
[1735954364776,3.25185911,3593.1,3592.6,3.2078]
[1735954364971,3.25185911,3593.1,3593.0,0.27841]
[1735954365276,3.25185911,3593.1,3593.0,1.37141]
[1735954366173,3.2078,3593.2,3593.0,1.093]
[1735954366174,7.54491831,3593.2,3593.0,1.093]
[1735954366372,7.54491831,3593.2,3593.1,0.2784]
[1735954367873,3.62546833,3593.2,3593.1,0.2784]
[1735954369885,0.41766833,3593.2,3593.1,0.2784]
[1735954370686,4.33711831,3593.3,3593.2,0.2784]
[1735954372089,4.61550831,3593.3,3593.2,0.2784]
[1735954372289,4.33711831,3593.3,3592.4,7.5481102]
[1735954372598,0.27845,3592.6,3592.3,4.3403102]
[1735954372893,0.27845,3592.6,3592.4,0.27845]
[1735954373088,3.48625,3592.6,3592.4,0.27845]
[1735954374394,0.41766833,3592.5,3592.4,0.27845]
[1735954377394,4.75151703,3592.5,3592.4,0.27845]
[1735954383396,5.20551703,3592.5,3592.4,0.27845]
[1735954385099,4.12165771,3592.5,3592.4,0.27845]
[1735954386303,0.454,3592.5,3592.4,0.27845]
[1735954394608,0.454,3592.5,3592.4,0.55685]
[1735954394910,3.70398938,3592.5,3592.4,0.55685]
[1735954396104,0.454,3592.5,3592.4,0.55685]
[1735954400614,1e-05,3592.5,3592.4,0.55685]
[1735954404708,3.24919938,3592.8,3592.4,0.2784]
[1735954404904,3.24919938,3592.8,3592.7,5.62510542]
[1735954405310,5.37392974,3593.2,3592.8,0.27843]
[1735954405311,3.24919938,3592.9,3592.8,0.27843]
[1735954405511,3.24919938,3592.9,3592.8,1.37143]
[1735954406416,2.48544938,3592.9,3592.8,1.80853]
[1735954406613,1.55398938,3592.9,3592.8,1.80853]
[1735954406911,4.3338487,3593.3,3593.2,0.2784]
[1735954407118,4.3338487,3593.3,3593.2,3.4862]
[1735954407922,4.7576487,3593.3,3593.2,3.4862]
[1735954408119,4.7576487,3593.3,3593.2,0.2784]
[1735954408319,0.4238,3593.3,3593.2,0.2784]
[1735954412521,0.84146367,3593.3,3593.2,0.2784]
[1735954412923,1.28606367,3593.3,3593.2,0.2784]
[1735954414027,1.28606367,3593.3,3592.4,4.18235]
[1735954414028,5.89830237,3593.3,3593.1,0.2784]
[1735954414217,0.4381,3593.2,3593.0,1.37141]
[1735954414621,0.4381,3593.2,3593.0,1.093]
[1735954414822,0.4381,3593.2,3593.1,0.2784]
[1735954416523,5.05346998,3593.2,3593.1,0.2784]
[1735954419024,0.85579742,3593.2,3593.1,0.2784]
[1735954420331,0.4381,3593.2,3593.1,0.2784]
[1735954422026,0.85579742,3593.2,3593.1,0.2784]
[1735954423935,5.33360755,3593.2,3593.1,0.2784]
[1735954424239,5.05520755,3593.2,3593.1,0.2784]
[1735954425032,10.42913729,3593.2,3593.1,0.2784]
[1735954426131,10.70753729,3593.2,3593.1,0.2784]
[1735954426629,10.42913729,3593.2,3593.1,0.2784]
[1735954429530,5.05520755,3593.2,3593.1,0.2784]
[1735954430130,5.05520755,3593.2,3592.2,4.3403102]
[1735954430335,1.28596148,3592.7,3592.6,0.27844]
[1735954431539,0.4379,3592.7,3592.6,1.28596148]
[1735954431741,4.77863712,3592.8,3592.7,0.27843]
[1735954432142,4.77863712,3592.8,3592.7,0.71403]
[1735954432441,0.4381,3592.8,3592.7,0.71403]
[1735954434139,0.85582237,3592.8,3592.7,0.71403]
[1735954435638,5.05741428,3592.8,3592.1,0.2784]
[1735954435837,3.2078,3592.5,3592.2,0.27847]
[1735954436135,0.71946,3592.4,3592.2,0.27847]
[1735954436341,0.4542,3592.3,3592.2,0.27847]
[1735954437442,10.49918569,3592.3,3592.2,0.27847]
[1735954438839,0.87192237,3592.3,3592.2,0.27847]
[1735954439048,5.20944182,3592.3,3592.2,0.27847]
[1735954439238,4.75524182,3592.3,3592.2,0.27847]
[1735954439434,4.75524182,3592.3,3592.2,0.69637]
[1735954440348,4.33751945,3592.4,3592.3,0.27847]
[1735954441645,4.75524182,3592.5,3592.4,0.27846]
[1735954442650,5.03369182,3592.5,3592.3,0.27846]
[1735954443045,4.75524182,3592.6,3592.4,0.27846]
[1735954443248,5.03369182,3592.6,3592.4,0.27846]
[1735954444448,0.41772237,3592.5,3592.4,0.27846]
[1735954444752,0.27847,3592.3,3592.2,0.27847]
[1735954445451,0.85362237,3592.3,3592.2,0.27847]
[1735954445841,0.41772237,3592.3,3592.2,0.27847]
[1735954448250,0.41772237,3592.4,3592.1,6.44118036]
[1735954448450,0.41772237,3592.4,3592.3,0.27847]
[1735954449749,2.16795092,3592.4,3592.3,0.27847]
[1735954451146,2.16795092,3592.5,3592.1,6.44118036]
[1735954451349,2.16795092,3592.5,3592.4,0.27846]
[1735954452453,2.16795092,3592.6,3592.1,6.44118036]
[1735954452655,2.16795092,3592.6,3592.1,3.2078]
[1735954452957,0.27845,3592.5,3592.3,0.27846]
[1735954453153,2.16795092,3592.6,3592.2,1.37047]
[1735954453456,0.27848,3592.2,3591.9,2.08819]
[1735954453647,0.4203,3592.1,3591.9,0.4393]
[1735954453847,0.4203,3592.1,3591.8,4.6187102]
[1735954453848,0.2785,3591.9,3591.8,4.6187102]
[1735954454254,0.2785,3591.9,3591.8,0.2784]
[1735954454454,0.4338,3592.0,3591.7,0.73111]
[1735954454757,0.7123,3592.0,3591.7,0.73111]
[1735954455157,0.7123,3592.0,3591.8,0.2792]
[1735954455661,0.7123,3592.0,3591.8,0.5577]
[1735954455958,0.7123,3592.0,3591.8,0.2792]
[1735954456558,0.4338,3592.0,3591.8,0.2792]
[1735954456748,4.75514967,3592.1,3591.8,0.2792]
[1735954457151,4.75514967,3592.1,3592.0,0.27849]
[1735954458455,4.33484967,3592.1,3592.0,0.27849]
[1735954459855,0.4177738,3592.3,3592.2,0.27847]
[1735954461366,0.8308738,3592.3,3592.2,0.27847]
[1735954464664,0.4177738,3592.3,3592.2,0.27847]
[1735954466662,2.17058071,3592.3,3592.2,0.27847]
[1735954467561,2.17058071,3592.3,3592.2,3.48627]
[1735954468669,2.17058071,3592.5,3592.2,3.2078]
[1735954468871,2.17058071,3592.5,3592.4,0.27846]
[1735954470673,2.17058071,3592.5,3592.4,2.41984036]
[1735954471775,2.17058071,3592.6,3592.5,0.27845]
[1735954472165,2.17058071,3592.6,3592.5,0.72655]
[1735954473270,2.17058071,3592.7,3592.6,0.27844]
[1735954473467,2.17058071,3592.7,3592.6,3.48624]
[1735954473971,2.17058071,3592.7,3592.6,3.90804]
[1735954474770,2.17058071,3592.8,3592.6,3.908]
[1735954474966,2.17058071,3592.8,3592.7,0.27843]
[1735954475268,2.17058071,3592.8,3592.7,2.41981036]
[1735954476473,2.17058071,3592.9,3592.8,0.27843]
[1735954477984,0.4206,3593.2,3593.1,0.2784]
[1735954478175,0.4206,3593.2,3593.1,1.3704]
[1735954480381,2.59118071,3593.2,3593.1,1.3704]
[1735954482581,2.59118071,3593.2,3593.1,0.2784]
[1735954482782,2.59118071,3593.2,3593.1,1.3704]
[1735954484684,0.4206,3593.2,3593.1,1.3704]
[1735954491190,2.17058071,3593.3,3593.2,0.2784]
[1735954491378,2.17058071,3593.4,3593.3,0.27839]
[1735954494283,3.70032923,3593.5,3593.4,0.27838]
[1735954495586,4.11796775,3593.5,3593.4,0.27838]
[1735954497093,3.70032923,3593.5,3593.4,0.27838]
[1735954499890,2.61326307,3593.5,3593.4,0.27838]
[1735954501297,3.70032923,3593.5,3593.4,0.27838]
[1735954503508,3.97869923,3593.5,3593.3,0.71408]
[1735954503803,3.97869923,3593.5,3593.3,0.27838]
[1735954503999,3.70032923,3593.5,3593.3,0.27838]
[1735954504205,0.27839,3593.3,3593.1,0.2784]
[1735954504408,0.2784,3593.3,3592.9,1.37041]
[1735954505407,0.2784,3593.3,3593.0,0.27841]
[1735954505605,3.67425892,3593.2,3593.0,0.27841]
[1735954505808,0.8659,3593.1,3593.0,0.27841]
[1735954506008,1.3058,3593.1,3593.0,0.27841]
[1735954506207,1.5842,3593.1,3592.9,1.37042]
[1735954506407,1.3058,3593.1,3592.2,4.3403102]
[1735954506609,0.27842,3593.0,3592.8,0.27843]
[1735954506806,0.27842,3593.0,3592.6,1.092]
[1735954506807,4.56242923,3593.1,3593.0,0.27841]
[1735954508109,3.67302923,3593.1,3593.0,0.27841]
[1735954508413,0.83407559,3593.1,3593.0,0.27841]
[1735954509512,0.4164,3593.1,3593.0,0.27841]
[1735954509906,0.4164,3593.1,3592.6,1.092]
[1735954510218,0.4164,3593.1,3592.9,0.27842]
[1735954510510,0.4164,3593.1,3592.9,1.37042]
[1735954510808,0.4164,3593.1,3593.0,0.27841]
[1735954512002,0.4164,3593.1,3593.0,0.69331]
[1735954512206,5.04407358,3593.1,3593.0,0.69331]
[1735954512407,5.04407358,3593.1,3593.0,1.14451]
[1735954512713,4.62767358,3593.1,3593.0,1.14451]
[1735954513219,4.62767358,3593.1,3593.0,1.56981]
[1735954514018,4.34983071,3593.2,3593.1,0.2784]
[1735954514814,4.34983071,3593.2,3593.1,0.5568]
[1735954515220,3.26298984,3593.2,3593.1,0.5568]
[1735954516321,3.26298984,3593.2,3593.1,2.69780894]
[1735954518520,2.58118984,3593.2,3593.1,2.69780894]
[1735954518721,2.17513824,3593.2,3593.1,7.03811914]
[1735954519225,1.48813824,3593.2,3593.1,7.03811914]
[1735954520116,4.34983071,3593.8,3593.7,0.27836]
[1735954520316,4.34983071,3593.8,3593.7,1.37036]
[1735954521321,5.20583071,3593.8,3593.7,1.37036]
[1735954522419,5.20583071,3593.8,3593.7,1.092]
[1735954522817,1.27358368,3593.8,3593.7,1.092]
[1735954523220,1.55193368,3593.8,3593.7,1.092]
[1735954523419,1.27358368,3593.8,3593.7,1.092]
[1735954525025,1.27358368,3593.8,3593.7,1.37036]
[1735954525427,10.88625084,3593.8,3593.7,1.37036]
[1735954526219,10.88625084,3593.8,3593.7,1.092]
[1735954526423,10.88625084,3593.8,3593.7,1.37036]
[1735954526629,6.71023055,3593.8,3593.7,1.37036]
[1735954526831,1.27358368,3593.8,3593.7,1.092]
[1735954527130,1.27358368,3593.8,3593.7,1.37036]
[1735954529530,1.27358368,3593.8,3593.7,1.092]